[Event "Gideon Japhet ACP Open 2018"]
[Site "Jerusalem"]
[Date "2018.07.02"]
[Round "2"]
[White "Erenberg, Ariel"]
[Black "Gleizer, Mark"]
[Result "0-1"]
[ECO "E15"]
[WhiteElo "2393"]
[BlackElo "2161"]
[Annotator "NA"]
[PlyCount "114"]
[EventDate "2018.07.01"]
[EventType "swiss"]
[EventCountry "ISR"]
[SourceTitle "playchess.com"]
[Source "ChessBase"]
[SourceQuality "1"]
[TimeControl "40/5400+30:1800+30"]

1. d4 {[%emt 0:00:00]} Nf6 {[%emt 0:00:00]} 2. c4 {[%emt 0:00:00]} e6 {[%emt 0:00:00]} 3. Nf3 {[%emt 0:01:15]} b6 {[%emt 0:00:03]} 4. g3 {[%emt 0:00:12]} Ba6 {[%emt 0:00:14]} 5. Qb3 {[%emt 0:01:00]} d5 {[%emt 0:04:22]} 6. cxd5 {[%emt 0:02:42]} Qxd5 {[%emt 0:01:27] E15: Queen's Indian: 4 g3 sidelines, 4 g3 Ba6 and 4 g3 Bb7 early deviations} 7. Qc2 {[%emt 0:09:19]} Nc6 {[%emt 0:22:39]} 8. Nc3 {[%emt 0:01:09] LiveBook: 11 Games} Nb4 {[%emt 0:03:28]} 9. Qd1 {[%emt 0:04:01]} Qf5 {[%emt 0:09:49]} 10. Bg2 {[%emt 0:02:52]} O-O-O $146 {[%emt 0:14:28]} ({Predecessor:} 10... Nc2+ $11 {hält das Gleichgewicht.} 11. Kf1 Nxa1 (11... O-O-O 12. Nh4 Rxd4 13. Qxd4 Nxd4 14. Nxf5 exf5 {0-1 (65) Tregubov,P (2589)-Duda,J (2663) Doha 2015}) 12. Qa4+ Nd7) 11. O-O {[%emt 0:02:49]} Qc2 {[%emt 0:02:19] [#]} 12. a3 {[%emt 0:11:21]} ({Better is} 12. Ne5 $1 $18) 12... Qxd1 {[%emt 0:02:26]} 13. Rxd1 {[%emt 0:01:10]} Nbd5 {[%emt 0:01:46]} 14. Ne5 {[%emt 0:01:27]} Nxc3 {[%emt 0:01:48]} 15. bxc3 {[%emt 0:02:01]} Bxe2 16. Re1 {[%emt 0:00:20]} Bh5 {[%emt 0:02:01]} 17. Nc6 {[%emt 0:00:20]} Bd6 {[%emt 0:06:01]} 18. Nxd8 {[%emt 0:06:05]} Rxd8 {[%emt 0:00:11]} 19. c4 {[%emt 0:00:18]} c5 {[%emt 0:01:37]} 20. d5 {[%emt 0:02:41]} exd5 {[%emt 0:00:09]} 21. cxd5 {[%emt 0:00:02]} Ne8 {[%emt 0:00:47]} 22. Bb2 {[%emt 0:01:29]} Bg4 {[%emt 0:05:05]} 23. Re3 {[%emt 0:02:55]} f6 {[%emt 0:01:29]} 24. h3 {[%emt 0:02:45]} Bd7 {[%emt 0:00:36]} 25. Rc1 {[%emt 0:01:51]} Nc7 {[%emt 0:01:00]} 26. f4 {[%emt 0:01:51]} Ba4 {[%emt 0:02:58]} 27. Be4 {[%emt 0:02:47]} Kb8 {[%emt 0:02:44]} 28. Kf2 {[%emt 0:03:38]} h6 {[%emt 0:02:23]} 29. Kf3 {[%emt 0:01:14]} Be8 {[%emt 0:00:42]} 30. Rd3 {[%emt 0:07:56]} Bf7 {[%emt 0:00:06]} 31. Rcd1 {[%emt 0:00:27]} Rf8 {[%emt 0:01:35]} 32. g4 {[%emt 0:05:39]} Be8 {[%emt 0:01:57]} 33. Bf5 {[%emt 0:03:04]} Bb5 {[%emt 0:00:47]} 34. R3d2 {[%emt 0:05:25]} g5 {[%emt 0:02:33] [#]} (34... Be8 $11) 35. fxg5 $1 {[%emt 0:02:26]} hxg5 {[%emt 0:00:02]} 36. Ke4 {[%emt 0:08:18]} (36. h4 $16) 36... Re8+ {[%emt 0:00:35]} 37. Be6 {[%emt 0:00:15]} Bf4 {[%emt 0:04:00]} 38. Rf2 {[%emt 0:00:46]} Bc4 {[%emt 0:02:42]} 39. Kf5 {[%emt 0:00:51]} Nxe6 {[%emt 0:00:49]} 40. dxe6 {[%emt 0:00:09]} Bxe6+ {[%emt 0:00:30]} 41. Kxf6 {[%emt 0:30:15]} Bc8 $16 {[%emt 0:11:59]} (41... Kc7 $142) 42. Kf7 {[%emt 0:00:00]} Re4 {[%emt 0:05:00]} 43. Rd8 {[%emt 0:00:00]} b5 {[%emt 0:02:14]} 44. Re8 {[%emt 0:00:00]} Rxe8 {[%emt 0:01:54]} 45. Kxe8 {[%emt 0:00:00]} a5 {[%emt 0:00:19]} 46. Rc2 {[%emt 0:00:00]} Be3 {[%emt 0:00:43]} 47. Re2 {[%emt 0:00:00]} Bf4 {[%emt 0:00:15]} 48. Be5+ {[%emt 0:00:00]} Kb7 {[%emt 0:01:18]} 49. Bxf4 {[%emt 0:00:00]} gxf4 {[%emt 0:00:07]} 50. Kd8 {[%emt 0:00:00]} b4 {[%emt 0:03:55]} 51. Re7+ {[%emt 0:00:00]} Kb8 {[%emt 0:02:59]} 52. Rc7 {[%emt 0:02:15]} Ba6 {[%emt 0:00:19]} 53. Rxc5 {[%emt 0:01:02]} b3 {[%emt 0:01:02]} 54. Rc1 {[%emt 0:04:01]} f3 {[%emt 0:00:18]} 55. Rb1 {[%emt 0:01:11]} a4 {[%emt 0:00:26]} 56. Rb2 {[%emt 0:01:14]} Be2 {[%emt 0:00:06]} 57. g5 {[%emt 0:00:07]} f2 {[%emt 0:00:09]} 0-1

[Event "Gideon Japhet ACP Open 2018"]
[Site "Jerusalem"]
[Date "2018.07.02"]
[Round "2"]
[White "Veinberg, Nimrod"]
[Black "Yaniv, Yuval"]
[Result "0-1"]
[ECO "E83"]
[WhiteElo "2390"]
[BlackElo "2054"]
[Annotator "ChessBase"]
[PlyCount "56"]
[EventDate "2018.07.01"]
[EventType "swiss"]
[EventCountry "ISR"]
[SourceTitle "playchess.com"]
[Source "ChessBase"]
[SourceQuality "1"]
[TimeControl "40/5400+30:1800+30"]

1. d4 {[%emt 0:00:00]} Nf6 {[%emt 0:00:00]} 2. c4 {[%emt 0:00:00]} g6 {[%emt 0:00:00]} 3. Nc3 {[%emt 0:00:04]} Bg7 {[%emt 0:00:00]} 4. e4 {[%emt 0:00:05]} d6 {[%emt 0:00:00]} 5. f3 {[%emt 0:02:57]} O-O {[%emt 0:00:06]} 6. Be3 {[%emt 0:00:14]} Nc6 {[%emt 0:00:07]} 7. Nge2 {[%emt 0:00:47]} a6 {[%emt 0:00:10]} 8. Rc1 {[%emt 0:00:31]} Bd7 {[%emt 0:00:11]} 9. Qd2 {[%emt 0:01:32]} b5 {[%emt 0:00:45]} 10. Nd1 {[%emt 0:01:03]} Ne8 {[%emt 0:04:29]} 11. c5 {[%emt 0:03:33]} f5 {[%emt 0:04:36]} 12. h3 {[%emt 0:16:26]} fxe4 {[%emt 0:06:02]} 13. fxe4 {[%emt 0:00:15]} dxc5 {[%emt 0:06:33]} 14. Rxc5 {[%emt 0:12:11]} Nd6 {[%emt 0:03:34]} 15. Qc2 {[%emt 0:00:57]} Nc4 {[%emt 0:00:22]} 16. Bg5 {[%emt 0:04:40]} Be8 {[%emt 0:09:18]} 17. Rxc6 {[%emt 0:06:51]} Bxc6 {[%emt 0:00:10]} 18. b3 {[%emt 0:00:06]} Bxd4 {[%emt 0:05:30]} 19. Nxd4 {[%emt 0:07:22]} Qxd4 {[%emt 0:01:32]} 20. bxc4 {[%emt 0:00:07]} Rad8 {[%emt 0:05:17]} 21. cxb5 {[%emt 0:06:39]} axb5 {[%emt 0:01:42]} 22. Be2 {[%emt 0:01:21]} Qe5 {[%emt 0:04:35]} 23. Qb3+ {[%emt 0:01:01]} Kh8 {[%emt 0:05:00]} 24. Bd2 {[%emt 0:12:41]} Qxe4 {[%emt 0:03:33]} 25. Qe3 {[%emt 0:00:09]} Rxd2 {[%emt 0:20:03]} 26. Kxd2 {[%emt 0:03:28]} Rd8+ {[%emt 0:02:15]} 27. Kc3 {[%emt 0:02:39]} b4+ {[%emt 0:00:43]} 28. Kb3 {[%emt 0:00:11]} Qb1+ {[%emt 0:02:14]} 0-1

[Event "Gideon Japhet ACP Open 2018"]
[Site "Jerusalem"]
[Date "2018.07.02"]
[Round "2"]
[White "Parkhov, Yair"]
[Black "Lukin, Elisha"]
[Result "1-0"]
[ECO "A06"]
[WhiteElo "2364"]
[BlackElo "2016"]
[Annotator "ChessBase"]
[PlyCount "75"]
[EventDate "2018.07.01"]
[EventType "swiss"]
[EventCountry "ISR"]
[SourceTitle "playchess.com"]
[Source "ChessBase"]
[SourceQuality "1"]
[TimeControl "40/5400+30:1800+30"]

1. Nf3 {[%emt 0:00:00]} d5 {[%emt 0:01:51]} 2. g3 {[%emt 0:00:00]} Nf6 {[%emt 0:00:08]} 3. Bg2 {[%emt 0:00:07]} c6 {[%emt 0:00:09]} 4. O-O {[%emt 0:00:07]} Bf5 {[%emt 0:00:11]} 5. d3 {[%emt 0:00:06]} h6 {[%emt 0:00:07]} 6. c4 {[%emt 0:00:09]} e6 {[%emt 0:00:06]} 7. cxd5 {[%emt 0:00:07]} cxd5 {[%emt 0:03:28]} 8. Qb3 {[%emt 0:00:10]} Qb6 {[%emt 0:01:37]} 9. Qxb6 {[%emt 0:00:11]} axb6 {[%emt 0:00:06]} 10. Be3 {[%emt 0:00:08]} Bc5 {[%emt 0:02:10]} 11. Rc1 {[%emt 0:00:10]} Na6 {[%emt 0:01:31]} 12. d4 {[%emt 0:03:39]} Be7 {[%emt 0:02:59]} 13. a3 {[%emt 0:00:43]} b5 {[%emt 0:04:14]} 14. Nbd2 {[%emt 0:25:50]} O-O {[%emt 0:07:27]} 15. Nb3 {[%emt 0:00:15]} b4 {[%emt 0:17:25]} 16. a4 {[%emt 0:01:46]} Rfc8 {[%emt 0:13:39]} 17. Ne1 {[%emt 0:20:35]} Nd7 {[%emt 0:05:57]} 18. a5 {[%emt 0:02:33]} Nc7 {[%emt 0:10:39]} 19. f3 {[%emt 0:03:28]} Nb5 {[%emt 0:05:37]} 20. Bd2 {[%emt 0:02:11]} Rc4 {[%emt 0:07:49]} 21. e4 {[%emt 0:05:02]} Bg6 {[%emt 0:01:22]} 22. Bf1 {[%emt 0:00:45]} Rxc1 {[%emt 0:01:58]} 23. Rxc1 {[%emt 0:01:26]} Nxd4 {[%emt 0:05:39]} 24. Nxd4 {[%emt 0:00:14]} Bc5 {[%emt 0:00:45]} 25. Be3 {[%emt 0:00:20]} dxe4 {[%emt 0:01:07]} 26. fxe4 {[%emt 0:02:08]} Bxe4 {[%emt 0:00:17]} 27. Bb5 {[%emt 0:02:40]} e5 {[%emt 0:02:46]} 28. Bxd7 {[%emt 0:00:39]} Bxd4 {[%emt 0:01:16]} 29. Bxd4 {[%emt 0:00:07]} exd4 {[%emt 0:00:31]} 30. Rc8+ {[%emt 0:00:16]} Rxc8 {[%emt 0:00:31]} 31. Bxc8 {[%emt 0:00:08]} Kf8 {[%emt 0:00:39]} 32. Kf2 {[%emt 0:00:34]} Ke7 {[%emt 0:00:45]} 33. Nf3 {[%emt 0:01:14]} Kd8 {[%emt 0:00:29]} 34. Bh3 {[%emt 0:00:10]} d3 {[%emt 0:00:36]} 35. Nd2 {[%emt 0:00:08]} Bg6 {[%emt 0:00:24]} 36. Ke3 {[%emt 0:00:19]} Kc7 {[%emt 0:00:09]} 37. Bg2 {[%emt 0:00:06]} f6 {[%emt 0:00:27]} 38. Kd4 {[%emt 0:00:18]} 1-0

[Event "Gideon Japhet ACP Open 2018"]
[Site "Jerusalem"]
[Date "2018.07.02"]
[Round "2"]
[White "Birnboim, Nathan"]
[Black "Bagrationi, Alexander"]
[Result "1-0"]
[ECO "E63"]
[WhiteElo "2353"]
[BlackElo "2539"]
[Annotator "ChessBase"]
[PlyCount "123"]
[EventDate "2018.07.01"]
[EventType "swiss"]
[EventCountry "ISR"]
[SourceTitle "playchess.com"]
[Source "ChessBase"]
[SourceQuality "1"]
[TimeControl "40/5400+30:1800+30"]

1. d4 {[%emt 0:00:00]} Nf6 {[%emt 0:01:06]} 2. c4 {[%emt 0:00:17]} g6 {[%emt 0:01:32]} 3. g3 {[%emt 0:00:14]} Bg7 {[%emt 0:01:21]} 4. Bg2 {[%emt 0:00:19]} O-O {[%emt 0:00:50]} 5. Nc3 {[%emt 0:00:14]} d6 {[%emt 0:00:17]} 6. Nf3 {[%emt 0:00:14]} Nc6 {[%emt 0:00:41]} 7. O-O {[%emt 0:00:09]} a6 {[%emt 0:01:37]} 8. d5 {[%emt 0:00:09]} Na5 {[%emt 0:01:26]} 9. Nd2 {[%emt 0:00:05]} c5 {[%emt 0:00:18]} 10. Qc2 {[%emt 0:00:09]} Rb8 {[%emt 0:00:45]} 11. b3 {[%emt 0:00:09]} b5 {[%emt 0:01:03]} 12. Bb2 {[%emt 0:00:12]} e5 {[%emt 0:04:06]} 13. dxe6 {[%emt 0:00:12]} Bxe6 {[%emt 0:04:47]} 14. cxb5 {[%emt 0:01:08]} axb5 {[%emt 0:05:50]} 15. Nde4 {[%emt 0:01:08]} b4 {[%emt 0:03:40]} 16. Nxf6+ {[%emt 0:01:09]} Qxf6 {[%emt 0:01:34]} 17. Nd1 {[%emt 0:00:18]} Qf5 {[%emt 0:07:30]} 18. Qxf5 {[%emt 0:06:28]} Bxf5 {[%emt 0:08:17]} 19. Bxg7 {[%emt 0:00:09]} Kxg7 {[%emt 0:00:04]} 20. Ne3 {[%emt 0:00:17]} Be6 {[%emt 0:00:10]} 21. Rfd1 {[%emt 0:04:27]} Rfd8 {[%emt 0:03:11]} 22. Nd5 {[%emt 0:02:45]} Nc6 {[%emt 0:06:35]} 23. e3 {[%emt 0:00:52]} Na7 {[%emt 0:14:42]} 24. Rd2 {[%emt 0:07:58]} Bxd5 {[%emt 0:02:40]} 25. Bxd5 {[%emt 0:00:22]} Nb5 {[%emt 0:00:15]} 26. Rc1 {[%emt 0:00:21]} Rb6 {[%emt 0:02:42]} 27. Bg2 {[%emt 0:12:50]} Nc3 {[%emt 0:02:57]} 28. a3 {[%emt 0:05:04]} d5 {[%emt 0:03:59]} 29. axb4 {[%emt 0:00:14]} cxb4 {[%emt 0:00:02]} 30. Ra1 {[%emt 0:05:34]} Rbd6 {[%emt 0:04:59]} 31. Bf1 {[%emt 0:01:55]} d4 {[%emt 0:00:46]} 32. Rxd4 {[%emt 0:00:46]} Rxd4 {[%emt 0:00:03]} 33. exd4 {[%emt 0:00:05]} Rxd4 {[%emt 0:00:07]} 34. Ra7 {[%emt 0:03:59]} Ne4 {[%emt 0:00:58]} 35. Bc4 {[%emt 0:01:20]} Nd6 {[%emt 0:00:31]} 36. Rd7 {[%emt 0:00:36]} Kf6 {[%emt 0:08:43]} 37. Bxf7 {[%emt 0:01:17]} Rd2 {[%emt 0:01:07]} 38. Bg8 {[%emt 0:01:22]} h6 {[%emt 0:00:26]} 39. Kf1 {[%emt 0:08:54]} Ke5 {[%emt 0:00:47]} 40. Ke1 {[%emt 0:01:30]} Rd4 {[%emt 0:00:25]} 41. f4+ {[%emt 0:38:06]} Kf6 {[%emt 0:08:23]} 42. Ke2 {[%emt 0:00:00]} g5 {[%emt 0:01:34]} 43. fxg5+ {[%emt 0:00:00]} hxg5 {[%emt 0:00:51]} 44. Bc4 {[%emt 0:00:00]} Kf5 {[%emt 0:11:37]} 45. Bd3+ {[%emt 0:00:00]} Kg4 {[%emt 0:06:16]} 46. Rh7 {[%emt 0:03:13]} Rd5 {[%emt 0:01:05]} 47. Rh8 {[%emt 0:05:40]} Ra5 {[%emt 0:02:09]} 48. Ke3 {[%emt 0:05:44]} Ra3 {[%emt 0:01:40]} 49. Rd8 {[%emt 0:01:28]} Nf7 {[%emt 0:03:29]} 50. Rf8 {[%emt 0:03:55]} Ra7 {[%emt 0:00:49]} 51. Kf2 {[%emt 0:01:22]} Kh5 {[%emt 0:02:14]} 52. Rb8 {[%emt 0:00:40]} Kg4 {[%emt 0:01:52]} 53. Rxb4+ {[%emt 0:00:03]} Kh3 {[%emt 0:00:13]} 54. Kg1 {[%emt 0:00:11]} Ra1+ {[%emt 0:01:01]} 55. Bf1+ {[%emt 0:00:06]} Rxf1+ {[%emt 0:00:02]} 56. Kxf1 {[%emt 0:00:09]} Ne5 {[%emt 0:00:18]} 57. Re4 {[%emt 0:01:17]} Nf3 {[%emt 0:00:14]} 58. Kf2 {[%emt 0:03:48]} Nd2 {[%emt 0:00:44]} 59. Rb4 {[%emt 0:01:54]} Kxh2 {[%emt 0:00:04]} 60. Ke2 {[%emt 0:00:55]} Nb1 {[%emt 0:00:13]} 61. Kd3 {[%emt 0:00:34]} Kxg3 {[%emt 0:00:02]} 62. Ra4 {[%emt 0:00:18]} 1-0

[Event "Gideon Japhet ACP Open 2018"]
[Site "Jerusalem"]
[Date "2018.07.02"]
[Round "2"]
[White "Agrest, Inna"]
[Black "Muzychuk, Mariya"]
[Result "1/2-1/2"]
[ECO "B33"]
[WhiteElo "2303"]
[BlackElo "2521"]
[Annotator "ChessBase"]
[PlyCount "113"]
[EventDate "2018.07.01"]
[EventType "swiss"]
[EventCountry "ISR"]
[SourceTitle "playchess.com"]
[Source "ChessBase"]
[SourceQuality "1"]
[TimeControl "40/5400+30:1800+30"]

1. e4 {[%emt 0:00:00]} c5 {[%emt 0:00:00]} 2. Nf3 {[%emt 0:00:00]} Nc6 {[%emt 0:00:36]} 3. d4 {[%emt 0:00:00]} cxd4 {[%emt 0:00:05]} 4. Nxd4 {[%emt 0:00:00]} Nf6 {[%emt 0:00:22]} 5. Nc3 {[%emt 0:00:13]} e5 {[%emt 0:00:21]} 6. Ndb5 {[%emt 0:01:03]} d6 {[%emt 0:00:09]} 7. Bg5 {[%emt 0:00:44]} a6 {[%emt 0:00:05]} 8. Na3 {[%emt 0:01:30]} b5 {[%emt 0:00:07]} 9. Nd5 {[%emt 0:02:21]} Be7 {[%emt 0:00:11]} 10. Nxe7 {[%emt 0:09:20]} Nxe7 {[%emt 0:00:26]} 11. Bd3 {[%emt 0:02:11]} Ng6 {[%emt 0:00:36]} 12. c4 {[%emt 0:05:52]} h6 {[%emt 0:03:17]} 13. Bd2 {[%emt 0:03:04]} O-O {[%emt 0:07:02]} 14. O-O {[%emt 0:03:45]} Bb7 {[%emt 0:01:20]} 15. Re1 {[%emt 0:05:50]} bxc4 {[%emt 0:16:42]} 16. Nxc4 {[%emt 0:03:34]} a5 {[%emt 0:00:22]} 17. Be3 {[%emt 0:15:32]} d5 {[%emt 0:07:35]} 18. exd5 {[%emt 0:05:03]} Qxd5 {[%emt 0:01:49]} 19. Bf1 {[%emt 0:01:27]} Qe6 {[%emt 0:02:53]} 20. Qd6 {[%emt 0:05:54]} Qf5 {[%emt 0:07:40]} 21. Qc7 {[%emt 0:08:38]} Ba6 {[%emt 0:03:30]} 22. Rac1 {[%emt 0:07:37]} Nd5 {[%emt 0:06:39]} 23. Qc5 {[%emt 0:00:54]} Nxe3 {[%emt 0:04:30]} 24. Qxe3 {[%emt 0:01:21]} Bxc4 {[%emt 0:03:53]} 25. Rxc4 {[%emt 0:00:30]} Rfd8 {[%emt 0:01:42]} 26. g3 {[%emt 0:03:22]} Rab8 {[%emt 0:03:25]} 27. b3 {[%emt 0:00:36]} Rb4 {[%emt 0:00:28]} 28. Qe4 {[%emt 0:01:29]} Qxe4 {[%emt 0:03:04]} 29. Rexe4 {[%emt 0:00:34]} Rdb8 {[%emt 0:00:43]} 30. h4 {[%emt 0:03:57]} f6 {[%emt 0:02:11]} 31. Re1 {[%emt 0:03:49]} Rxc4 {[%emt 0:06:46]} 32. Bxc4+ {[%emt 0:00:05]} Kf8 {[%emt 0:00:01]} 33. Rd1 {[%emt 0:00:28]} e4 {[%emt 0:00:26]} 34. Rd5 {[%emt 0:02:15]} Ne5 {[%emt 0:09:04]} 35. Rxa5 {[%emt 0:02:26]} Nxc4 {[%emt 0:00:05]} 36. bxc4 {[%emt 0:00:03]} Rb1+ {[%emt 0:00:07]} 37. Kg2 {[%emt 0:00:07]} Rb2 {[%emt 0:00:07]} 38. Kf1 {[%emt 0:00:27]} Rc2 {[%emt 0:01:11]} 39. c5 {[%emt 0:00:41]} g5 {[%emt 0:02:15]} 40. h5 {[%emt 0:02:15]} Kf7 {[%emt 0:01:40]} 41. Ra4 {[%emt 0:07:49]} f5 {[%emt 0:10:14]} 42. Ra7+ {[%emt 0:04:27]} Kg8 {[%emt 0:05:14]} 43. Ra6 {[%emt 0:06:13]} Rxc5 {[%emt 0:00:10]} 44. Rxh6 {[%emt 0:00:13]} f4 {[%emt 0:00:11]} 45. Re6 {[%emt 0:03:12]} Rc1+ {[%emt 0:05:16]} 46. Ke2 {[%emt 0:01:22]} Rc2+ {[%emt 0:00:31]} 47. Ke1 {[%emt 0:00:57]} e3 {[%emt 0:00:52]} 48. fxe3 {[%emt 0:01:28]} fxg3 {[%emt 0:00:24]} 49. Kf1 {[%emt 0:00:43]} Rxa2 {[%emt 0:07:22]} 50. Rg6+ {[%emt 0:02:53]} Kh7 {[%emt 0:00:07]} 51. Rxg5 {[%emt 0:00:09]} Rf2+ {[%emt 0:00:07]} 52. Kg1 {[%emt 0:01:37]} Rf3 {[%emt 0:01:17]} 53. e4 {[%emt 0:00:33]} Kh6 {[%emt 0:01:14]} 54. Re5 {[%emt 0:03:31]} Rf2 {[%emt 0:00:44]} 55. Rd5 {[%emt 0:00:28]} Re2 {[%emt 0:00:25]} 56. Re5 {[%emt 0:00:09]} Rf2 {[%emt 0:00:31]} 57. Rd5 {[%emt 0:00:07]} 1/2-1/2

[Event "Gideon Japhet ACP Open 2018"]
[Site "Jerusalem"]
[Date "2018.07.02"]
[Round "2"]
[White "Zisman, Philip"]
[Black "Caspi, Israel"]
[Result "1-0"]
[ECO "A81"]
[WhiteElo "2293"]
[BlackElo "2479"]
[Annotator "ChessBase"]
[PlyCount "79"]
[EventDate "2018.07.01"]
[EventType "swiss"]
[EventCountry "ISR"]
[SourceTitle "playchess.com"]
[Source "ChessBase"]
[SourceQuality "1"]
[TimeControl "40/5400+30:1800+30"]

1. d4 {[%emt 0:00:00]} f5 {[%emt 0:00:00]} 2. g3 {[%emt 0:00:00]} Nf6 {[%emt 0:00:00]} 3. Bg2 {[%emt 0:00:00]} g6 {[%emt 0:00:03]} 4. Nh3 {[%emt 0:00:00]} Bg7 {[%emt 0:00:13]} 5. c3 {[%emt 0:00:09]} Nc6 {[%emt 0:05:20]} 6. Qb3 {[%emt 0:06:17]} d5 {[%emt 0:00:31]} 7. Nf4 {[%emt 0:01:17]} e6 {[%emt 0:00:07]} 8. Nd2 {[%emt 0:02:52]} Qe7 {[%emt 0:04:35]} 9. Nf3 {[%emt 0:02:21]} Ne4 {[%emt 0:00:30]} 10. Nd3 {[%emt 0:00:43]} b6 {[%emt 0:06:14]} 11. Bf4 {[%emt 0:05:03]} O-O {[%emt 0:18:57]} 12. h4 {[%emt 0:06:03]} Bb7 {[%emt 0:08:22]} 13. Nfe5 {[%emt 0:01:27]} Na5 {[%emt 0:10:40]} 14. Qb4 {[%emt 0:05:37]} Qd8 {[%emt 0:05:14]} 15. Qa4 {[%emt 0:07:53]} Rc8 {[%emt 0:04:23]} 16. f3 {[%emt 0:02:56]} Nd6 {[%emt 0:01:37]} 17. Bg5 {[%emt 0:20:25]} Qe8 {[%emt 0:01:54]} 18. Qxe8 {[%emt 0:00:04]} Rfxe8 {[%emt 0:00:14]} 19. Bf4 {[%emt 0:00:21]} Bf6 {[%emt 0:02:01]} 20. g4 {[%emt 0:03:54]} fxg4 {[%emt 0:00:43]} 21. fxg4 {[%emt 0:01:40]} Ne4 {[%emt 0:00:32]} 22. g5 {[%emt 0:02:20]} Bg7 {[%emt 0:00:12]} 23. h5 {[%emt 0:00:35]} gxh5 {[%emt 0:00:13]} 24. Rxh5 {[%emt 0:00:07]} c5 {[%emt 0:01:35]} 25. dxc5 {[%emt 0:01:38]} bxc5 {[%emt 0:00:10]} 26. O-O-O {[%emt 0:01:53]} c4 {[%emt 0:03:51]} 27. Bxe4 {[%emt 0:01:13]} dxe4 {[%emt 0:00:05]} 28. Nf2 {[%emt 0:04:16]} Rf8 {[%emt 0:09:11]} 29. g6 {[%emt 0:03:09]} h6 {[%emt 0:01:57]} 30. Nf7 {[%emt 0:00:10]} Bd5 {[%emt 0:00:33]} 31. Ng4 {[%emt 0:03:59]} Nc6 {[%emt 0:00:05]} 32. Ngxh6+ {[%emt 0:01:00]} Bxh6 {[%emt 0:00:06]} 33. Bxh6 {[%emt 0:00:14]} Rxf7 {[%emt 0:00:18]} 34. gxf7+ {[%emt 0:00:04]} Kxf7 {[%emt 0:00:05]} 35. Rf1+ {[%emt 0:04:20]} Ke7 {[%emt 0:00:27]} 36. Bf4 {[%emt 0:00:23]} Rg8 {[%emt 0:02:47]} 37. Rh7+ {[%emt 0:00:09]} Ke8 {[%emt 0:01:23]} 38. Be3 {[%emt 0:01:08]} a6 {[%emt 0:01:10]} 39. Rff7 {[%emt 0:01:02]} Kd8 {[%emt 0:02:06]} 40. Rc7 {[%emt 0:04:36]} 1-0

[Event "Gideon Japhet ACP Open 2018"]
[Site "Jerusalem"]
[Date "2018.07.02"]
[Round "2"]
[White "Cohen Revivo, Shoham"]
[Black "Gorodetzky, David"]
[Result "1/2-1/2"]
[ECO "C02"]
[WhiteElo "2248"]
[BlackElo "2460"]
[Annotator "ChessBase"]
[PlyCount "91"]
[EventDate "2018.07.01"]
[EventType "swiss"]
[EventCountry "ISR"]
[SourceTitle "playchess.com"]
[Source "ChessBase"]
[SourceQuality "1"]
[TimeControl "40/5400+30:1800+30"]

1. e4 {[%emt 0:00:00]} e6 {[%emt 0:00:00]} 2. d4 {[%emt 0:00:06]} d5 {[%emt 0:00:00]} 3. e5 {[%emt 0:00:06]} c5 {[%emt 0:00:00]} 4. c3 {[%emt 0:00:04]} Nc6 {[%emt 0:00:00]} 5. Nf3 {[%emt 0:00:05]} Bd7 {[%emt 0:00:08]} 6. Be2 {[%emt 0:00:51]} Nge7 {[%emt 0:01:21]} 7. Na3 {[%emt 0:00:40]} cxd4 {[%emt 0:11:25]} 8. cxd4 {[%emt 0:00:06]} Nf5 {[%emt 0:00:57]} 9. Nc2 {[%emt 0:00:11]} Qb6 {[%emt 0:01:43]} 10. O-O {[%emt 0:00:13]} Na5 {[%emt 0:07:09]} 11. b3 {[%emt 0:08:34]} Bb5 {[%emt 0:05:20]} 12. Bb2 {[%emt 0:09:52]} Nc6 {[%emt 0:10:42]} 13. Ne3 {[%emt 0:12:24]} Nxe3 {[%emt 0:06:44]} 14. fxe3 {[%emt 0:00:19]} Be7 {[%emt 0:00:08]} 15. Ne1 {[%emt 0:04:11]} O-O {[%emt 0:08:38]} 16. Nd3 {[%emt 0:01:00]} a5 {[%emt 0:13:19]} 17. Nf4 {[%emt 0:06:10]} a4 {[%emt 0:05:44]} 18. Nh5 {[%emt 0:00:20]} axb3 {[%emt 0:06:05]} 19. Qxb3 {[%emt 0:08:22]} Nb4 {[%emt 0:01:30]} 20. Bxb5 {[%emt 0:00:45]} Qxb5 {[%emt 0:00:02]} 21. Bc3 {[%emt 0:02:19]} Qd3 {[%emt 0:06:26]} 22. Bxb4 {[%emt 0:01:07]} Qxb3 {[%emt 0:00:02]} 23. axb3 {[%emt 0:00:01]} Bxb4 {[%emt 0:00:15]} 24. Nf4 {[%emt 0:01:24]} Bc3 {[%emt 0:02:25]} 25. Rxa8 {[%emt 0:00:22]} Rxa8 {[%emt 0:00:02]} 26. Nd3 {[%emt 0:01:02]} b5 {[%emt 0:01:39]} 27. Kf2 {[%emt 0:06:41]} h5 {[%emt 0:02:59]} 28. Rc1 {[%emt 0:03:41]} b4 {[%emt 0:00:11]} 29. Rc2 {[%emt 0:00:44]} Ra1 {[%emt 0:01:43]} 30. Nc5 {[%emt 0:02:28]} Rb1 {[%emt 0:04:48]} 31. Ra2 {[%emt 0:07:50]} g5 {[%emt 0:00:07]} 32. Rc2 {[%emt 0:04:24]} g4 {[%emt 0:01:04]} 33. Na4 {[%emt 0:07:17]} Rxb3 {[%emt 0:00:06]} 34. Nxc3 {[%emt 0:00:07]} bxc3 {[%emt 0:02:02]} 35. Ke2 {[%emt 0:00:06]} h4 {[%emt 0:01:14]} 36. Kd3 {[%emt 0:00:21]} Rb1 {[%emt 0:00:49]} 37. Rf2 {[%emt 0:03:49]} Rg1 {[%emt 0:01:01]} 38. Kxc3 {[%emt 0:01:00]} Kg7 {[%emt 0:00:31]} 39. Kd3 {[%emt 0:01:42]} g3 {[%emt 0:00:25]} 40. hxg3 {[%emt 0:00:18]} hxg3 {[%emt 0:00:03]} 41. Re2 {[%emt 0:31:12]} Ra1 {[%emt 0:10:31]} 42. Rd2 {[%emt 0:00:00]} Kg6 {[%emt 0:01:16]} 43. Ke2 {[%emt 0:00:00]} Kg5 {[%emt 0:03:17]} 44. Rd1 {[%emt 0:00:00]} Rxd1 {[%emt 0:04:14]} 45. Kxd1 {[%emt 0:00:00]} Kf5 {[%emt 0:00:27]} 46. Kd2 {[%emt 0:00:00]} 1/2-1/2